Cogmind - Beta 13 *** ADVENTURER MODE // 2024.04.14 @ 15:53:54 Player: Sacrath Result: Destroyed by Y-45 Defender with Beam Rifle Performance ------------- Evolutions (2) 1000 Regions Visited (4) 800 Robots Destroyed (38) 190 Value Destroyed (1101) 1101 Prototype IDs (3) 60 Alien Tech Used (0) 0 Bonus (11) 11 TOTAL SCORE: 3162 Bonus ------- High Alert Combat Kills 11 Cogmind --------- Core Integrity 0/550 Matter 300/300 Energy 72/100 System Corruption 0% Temperature Cool (9) Movement Core (200) Ox3 Location -8/Storage Parts ------- > --- POWER (1) -------- (None) > --- PROPULSION (4) --- (None) > --- UTILITY (3) ------ Melee Analysis Suite Actuator Array > --- WEAPON (3) ------- Heavy Flail Heavy Flail > --- INVENTORY (5) ---- Light Nuclear Core Peak State ------------ > --- POWER ------------ Light Nuclear Core > --- PROPULSION ------- Aluminum Leg Carbon-fiber Leg Titanium Leg > --- UTILITY ---------- Improved Heat Sink Actuator Array Actuator Array > --- WEAPON ----------- Shock Maul Katana Katana > --- INVENTORY -------- Light Nuclear Core Heavy Flail Heavy Flail [Rating: 31] Favorites ----------- Power Reinforced Ion Engine Engine Reinforced Ion Engine Power Core Light Nuclear Core Propulsion Aluminum Leg Leg Aluminum Leg Flight Unit Cesium-ion Thruster Utility Actuator Array Device Actuator Array Storage Small Storage Unit Processor Melee Analysis Suite Weapon Heavy Flail Ballistic Gun Assault Rifle Impact Weapon Heavy Flail Slashing Weapon Katana Build | -11 -10 -9 -8 -8 ------- Run | Yrd Mat Mat Mat Sto Slots Evolved 4 | . . 2 2 . Power . | . . . . . Propulsion 2 | . . 1 1 . Utility 1 | . . 1 . . Weapon 1 | . . . 1 . Parts Attached 32 | 5 1 8 6 12 Power 3 | . 1 1 . 1 Engine 2 | . 1 1 . . Core 1 | . . . . 1 Reactor . | . . . . . Propulsion 9 | 2 . 2 2 3 Treads . | . . . . . Leg 8 | 2 . 2 2 2 Wheel . | . . . . . Hover . | . . . . . Flight 1 | . . . . 1 Utility 8 | 1 . 3 . 4 Device 4 | . . 2 . 2 Storage 1 | 1 . . . . Processor 3 | . . 1 . 2 Hackware . | . . . . . Protection . | . . . . . Artifact . | . . . . . Weapon 12 | 2 . 2 4 4 Energy Gun . | . . . . . Energy Cannon . | . . . . . Ballistic Gun 2 | 2 . . . . Ballistic Cannon . | . . . . . Launcher . | . . . . . Special Weapon . | . . . . . Impact Weapon 6 | . . 2 1 3 Slashing Weapon 4 | . . . 3 1 Piercing Weapon . | . . . . . Special Melee Weapon . | . . . . . Unidentified Prototypes 1 | . . . . 1 Parts Lost 16 | . . 1 2 13 Power 3 | . . 1 . 2 Propulsion 8 | . . . 2 6 Utility 2 | . . . . 2 Weapon 3 | . . . . 3 Highest Loss Streak 3 | . . 1 1 3 To Critical Strikes . | . . . . . Average Slot Usage (%) 77 | . 80 71 87 76 Engine 7 | . 9 11 9 2 Core 1 | . . . . 4 Leg 25 | . 28 26 34 18 Device 12 | . . 1 18 20 Storage 4 | . 14 11 . . Ballistic Gun 9 | . 28 19 . . Impact Weapon 10 | . . 1 16 16 Slashing Weapon 5 | . . . 10 9 Naked Turns . | . . . . . Heaviest Build 31 | 8 11 31 29 26 Greatest Support 47 | 20 20 30 47 42 Greatest Overweight (x) 2 | . . 1 . 2 Average Overweight (x) . | . . . . . Largest Inventory Capacity 8 | 8 8 8 5 5 Average Capacity 6 | 6 8 8 5 5 Most Carried 5 | 2 1 2 4 5 Average Carried 1 | . . . 1 2 Final Capacity 8 | 8 8 8 5 5 Final Carried 4 | . . 2 4 1 Class Distribution -------------------- 54% | Gladiator 40% | Mutant 5% | Scavenger-Gladiator Dominant Class ---------------- Mutant | -10/Materials Mutant | -9/Materials Gladiator | -8/Materials Gladiator | -8/Storage Resources | -11 -10 -9 -8 -8 ----------- Run | Yrd Mat Mat Mat Sto Matter Collected 684 | 214 40 215 110 105 Remotely . | . . . . . Salvage Created 1322 | . 40 375 283 624 Parts 72 | . 7 32 8 25 Haulers Intercepted 2 | . . 1 . 1 Recyclers Shooed . | . . . . . Parts Field Recycled . | . . . . . Retrieved Matter . | . . . . . Parts Self-Destructed . | . . . . . Prevented . | . . . . . Kills | -11 -10 -9 -8 -8 ------- Run | Yrd Mat Mat Mat Sto Combat Hostiles Destroyed 31 | . 3 12 5 11 Melee 12 | . . . 3 9 Guns 15 | . 3 12 . . Classes Destroyed 9 | . 1 5 1 2 Worker 3 | . . . . 3 Hauler 2 | . . 1 . 1 Operator 1 | . . 1 . . Watcher 1 | . . . 1 . Swarmer 10 | . 3 7 . . Grunt 13 | . . 3 4 6 Brawler 1 | . . 1 . . Sentry 5 | . . 1 1 3 Hunter 2 | . . . . 2 Best Kill Streak 6 | . 3 5 6 5 Combat Bots Only 5 | . 3 5 5 4 Max Kills in Single Turn 1 | . 1 1 1 1 Gunslinging . | . . . . . Exploded . | . . . . . Melee 1 | . . . 1 1 Uniques/NPCs Destroyed . | . . . . . Combat | -11 -10 -9 -8 -8 -------- Run | Yrd Mat Mat Mat Sto Hostile Shots Fired 283 | . 8 63 23 189 Missed 68 | . 2 21 4 41 Damage Taken 2305 | . 38 288 253 1726 Core 654 | . 17 82 58 497 Absorbed by Shields . | . . . . . Ignored by Resistances 661 | . 12 90 73 486 Core Remaining (%) 90 | 100 93 79 . . Volleys Fired 46 | . 11 35 . . Largest 2 | . 2 2 . . Hottest 40 | . 40 40 . . Shots Fired 92 | . 22 70 . . Gun 92 | . 22 70 . . Cannon . | . . . . . Launcher . | . . . . . Special . | . . . . . Kinetic 92 | . 22 70 . . Thermal . | . . . . . Explosive . | . . . . . Electromagnetic . | . . . . . Robot Hit Streak 10 | . 5 10 . . Robot Miss Streak 3 | . 1 3 . . Penetration Max . | . . . . . Secondary Targets 3 | . . 3 . . Max Gunslinging Chain 1 | . . 1 . . Shots Hit Robots 123 | . 15 45 16 47 Core Hits 44 | . 4 23 2 15 Critical Kills 1 | . . 1 . . Critical Parts Destroyed 5 | . . . 3 2 Critical Strikes 8 | . . 1 4 3 Destroy 1 | . . 1 . . Smash 6 | . . . 3 3 Sever 1 | . . . 1 . Melee Attacks 79 | . . . 18 61 Impact 39 | . . . 11 28 Slashing 40 | . . . 7 33 Piercing . | . . . . . Sneak Attacks 6 | . . . 2 4 Combat Hostiles . | . . . . . Follow-up Attacks 20 | . . . 6 14 Damage Inflicted 3180 | . 158 470 688 1864 Guns 628 | . 158 470 . . Cannons . | . . . . . Explosions . | . . . . . Melee 2552 | . . . 688 1864 Ramming . | . . . . . Kinetic 628 | . 158 470 . . Thermal . | . . . . . Explosive . | . . . . . Electromagnetic . | . . . . . Impact 1310 | . . . 408 902 Slashing 1242 | . . . 280 962 Piercing . | . . . . . Highest Corruption . | . . . . . Average Corruption . | . . . . . Corruption Purged . | . . . . . Corruption Blocked . | . . . . . Overload Shots . | . . . . . Overflow Damage 465 | . . . 190 275 Projectiles . | . . . . . Explosions . | . . . . . Melee 465 | . . . 190 275 Knockbacks 3 | . . . 2 1 Impact 3 | . . . 2 1 Kinetic . | . . . . . Secondary . | . . . . . Self-Inflicted Damage . | . . . . . Shots . | . . . . . Rammed . | . . . . . Targets Rammed . | . . . . . Kicked . | . . . . . Crushed . | . . . . . Highest Temperature 19 | . . 11 5 19 Average Temperature 3 | . . 2 5 6 Received Heat Transfer 1098 | . . 45 180 873 Siege Activations . | . . . . . Robots Corrupted . | . . . . . Combat Hostiles . | . . . . . Parts Fried 14 | . . . 9 5 Impact Corruptions 12 | . . . 7 5 Robots Melted . | . . . . . Combat Hostiles . | . . . . . Parts Melted . | . . . . . Heat Transferred . | . . . . . Parts Sabotaged . | . . . . . Parts Stolen . | . . . . . Parts Stripped . | . . . . . Power Chain Reactions . | . . . . . Alert | -11 -10 -9 -8 -8 ------- Run | Yrd Mat Mat Mat Sto Peak Influence 412 | . 85 412 132 284 Initial 78 | . . 30 78 43 Average 131 | . 66 155 66 167 Maximum Alert Level 2 | . . 2 . 1 Low Security (%) 71 | 100 100 62 100 57 Level 1 27 | . . 37 . 42 Level 2 . | . . . . . Level 3 . | . . . . . Level 4 . | . . . . . Level 5 . | . . . . . High Security . | . . . . . Max Security . | . . . . . Squads Dispatched 5 | . . 1 1 3 Investigation 4 | . . . 1 3 Extermination . | . . . . . Reinforcement 1 | . . 1 . . Assault . | . . . . . Garrison . | . . . . . Intercept . | . . . . . Searches Triggered . | . . . . . Construction Impeded . | . . . . . Haulers Reinforced . | . . . . . Active Scanning Responses . | . . . . . Cargo Convoy Interrupts . | . . . . . Stealth | -11 -10 -9 -8 -8 --------- Run | Yrd Mat Mat Mat Sto Distress Signals 5 | . 1 . 2 2 Communications Jammed . | . . . . . Distress Signals . | . . . . . Times Spotted 51 | . 5 17 10 19 Peak Tracking Total 5 | . 4 5 4 5 Tactical Retreats 3 | . 1 1 . 1 Traps | -11 -10 -9 -8 -8 ------- Run | Yrd Mat Mat Mat Sto Traps Triggered 3 | . . 1 1 1 Indirectly . | . . . . . Trap Hack Attempts . | . . . . . Triggered . | . . . . . Disarmed . | . . . . . Reprogrammed 5 | . . 5 . . Reused 2 | . . 2 . . Traps Extracted . | . . . . . Installed . | . . . . . Triggered 2 | . . 2 . . Machines | -11 -10 -9 -8 -8 ---------- Run | Yrd Mat Mat Mat Sto Machines Disabled 1 | . . . . 1 Max in Single Turn 1 | . . . . 1 Machines Repaired . | . . . . . Machines Dismantled . | . . . . . Machines Sabotaged . | . . . . . Overloaded Fab Kills . | . . . . . Hacking | -11 -10 -9 -8 -8 --------- Run | Yrd Mat Mat Mat Sto Machines Accessed 7 | . . 3 1 3 Terminals 7 | . . 3 1 3 Fabricators . | . . . . . Repair Stations . | . . . . . Recycling Units . | . . . . . Scanalyzers . | . . . . . Garrison Access . | . . . . . Total Hacks 24 | . . 12 3 9 Successful 14 | . . 8 2 4 Failed 10 | . . 4 1 5 Catastrophic 1 | . . . . 1 Database Lockouts . | . . . . . Manual 3 | . . . . 3 Terminals 24 | . . 12 3 9 Fabricators . | . . . . . Repair Stations . | . . . . . Recycling Units . | . . . . . Scanalyzers . | . . . . . Garrison Access . | . . . . . Terminal Hacks 14 | . . 8 2 4 Record 2 | . . 1 . 1 Prototype ID Bank 1 | . . 1 . . Open Door 1 | . . . . 1 Emergency Access Points 1 | . . 1 . . Alert Level 1 | . . . . 1 Unreport Threat 2 | . . . 2 . Locate Traps 2 | . . 2 . . Reprogram Traps 1 | . . 1 . . Extermination Status 1 | . . . . 1 Registered Components 1 | . . 1 . . Zone Layout 1 | . . 1 . . Fabricator Hacks . | . . . . . Repair Station Hacks . | . . . . . Recycling Unit Hacks . | . . . . . Scanalyzer . | . . . . . Garrison Access Hacks . | . . . . . Unauthorized Hacks . | . . . . . Terminals . | . . . . . Fabricators . | . . . . . Repair Stations . | . . . . . Recycling Units . | . . . . . Scanalyzers . | . . . . . Garrison Access . | . . . . . Data Cores Recovered 1 | . . 1 . . Used . | . . . . . Hacking Detections 6 | . . 3 1 2 Full Trace Events 3 | . . . 1 2 Feedback Events . | . . . . . Feedback Blocked . | . . . . . Robot Schematics Acquired . | . . . . . Robots Built . | . . . . . Authchips . | . . . . . Time . | . . . . . Total Robot Build Rating . | . . . . . Part Schematics Acquired . | . . . . . Parts Built . | . . . . . Authchips . | . . . . . Time . | . . . . . Total Part Build Rating . | . . . . . Parts Repaired . | . . . . . Time . | . . . . . Parts Recycled . | . . . . . Recycled Matter . | . . . . . Retrieved Matter . | . . . . . Retrieved Components . | . . . . . Parts Scanalyzed . | . . . . . Part Schematics Acquired . | . . . . . Parts Damaged . | . . . . . Bothacking | -11 -10 -9 -8 -8 ------------ Run | Yrd Mat Mat Mat Sto Used RIF Installer . | . . . . . Robots Hacked . | . . . . . Non-combat . | . . . . . Combat . | . . . . . Robot Hacks Applied . | . . . . . Relay Couplers Released . | . . . . . Fabnet Peak Effective % . | . . . . . Robots Rewired . | . . . . . Allies Hacked . | . . . . . Hacks Repelled . | . . . . . Allies | -11 -10 -9 -8 -8 -------- Run | Yrd Mat Mat Mat Sto Total Allies . | . . . . . Largest Group . | . . . . . Highest-Rated Group . | . . . . . Highest-Rated Ally . | . . . . . Total Orders . | . . . . . Ally Attacks . | . . . . . Total Damage . | . . . . . Kills . | . . . . . Allies Corrupted . | . . . . . Allies Melted . | . . . . . Intel | -11 -10 -9 -8 -8 ------- Run | Yrd Mat Mat Mat Sto Robot Analysis Total . | . . . . . Derelict Logs Recovered . | . . . . . Drone Launches . | . . . . . Drone Recoveries . | . . . . . Exploration | -11 -10 -9 -8 -8 ------------- Run | Yrd Mat Mat Mat Sto Turns Passed 1463 | 40 138 466 269 550 Spaces Moved 702 | 33 84 272 107 206 Core 13 | 13 . . . . Treads . | . . . . . Legs 689 | 20 84 272 107 206 Wheels . | . . . . . Hover . | . . . . . Flight . | . . . . . Fastest Speed 50 | 50 120 120 120 123 Average Speed 124 | 92 120 123 121 132 Slowest Speed 260 | 120 120 190 123 260 Overloaded Moves . | . . . . . Propulsion Burnouts . | . . . . . Robots Hopped . | . . . . . Cave-ins Triggered . | . . . . . Exploration Rate (%) 19 | 3 23 28 11 30 Regions Visited 4 Branch Regions 1 Pre-discovered Areas . | . . . . . Known Exits Taken . | . . . . . Unknown Exits Taken 4 | 1 1 1 1 . Scrap Searched . | . . . . . Spaces Dug 1 | . . . . 1 Terrain Destroyed 1 | . . . . 1 Melee 1 | . . . . 1 Projectile . | . . . . . AOE . | . . . . . Terrain Rammed . | . . . . . Walls Destroyed . | . . . . . Machines Disabled . | . . . . . Actions | -11 -10 -9 -8 -8 --------- Run | Yrd Mat Mat Mat Sto Total 1126 | 42 101 340 231 412 Wait 257 | . 5 13 97 142 Move 698 | 32 83 271 106 206 Hop . | . . . . . Pick Up 33 | 5 1 10 8 9 Fast Attach . | . . . . . Attach 31 | 5 1 8 6 11 Detach . | . . . . . Swap 1 | . . . . 1 Drop 11 | . . 3 4 4 Fire 46 | . 11 35 . . Melee 49 | . . . 10 39 Ram . | . . . . . Kick . | . . . . . Crush . | . . . . . Escape Stasis . | . . . . . Rewire . | . . . . . Trap . | . . . . . Miscellaneous . | . . . . . Route ------- -11/Scrapyard -10/Materials -9/Materials (discovered 3 exits: *Mat x2 / [Min]) -8/Materials -8/Storage History --------- Turn | Location | Event 2 | -11/Scrapyard | Discovered new exit (range 16) 41 | -11/Scrapyard | Entered Materials 142 | -10/Materials | Discovered new exit (range 16) 179 | -10/Materials | Entered another Materials area 179 | -9/Materials | Evolved 2 slots: Propulsion x1, Utility x1 224 | -9/Materials | Discovered new exit (range 17) 313 | -9/Materials | Build established: Mutant 315 | -9/Materials | Discovered new exit (range 16) 634 | -9/Materials | Discovered new exit (range 4) 645 | -9/Materials | Entered another Materials area 645 | -8/Materials | Evolved 2 slots: Propulsion x1, Weapon x1 833 | -8/Materials | Discovered new exit (range 7) 889 | -8/Materials | Build established: Gladiator 914 | -8/Materials | Entered Storage 1037 | -8/Storage | Lost 3 parts (2n1w) 1335 | -8/Storage | Core integrity fell below 50% 1396 | -8/Storage | Lost 3 parts (1p1n1u) 1423 | -8/Storage | Core integrity fell below 20% 1450 | -8/Storage | Lost 3 parts (2n1u) 1464 | -8/Storage | Destroyed by Y-45 Defender with Beam Rifle Last Messages --------------- >>Alert(Check) Current Alert Level: Low Security >>Enumerate(Exterminations) Retrieving latest reported positions... No active extermination squads found. ALERT: Suspicious activity at Terminal S012. Dispatching Investigation squad. Acquired Melee Analysis Suite. Dropped Actuator Array. Acquired Melee Analysis Suite. Critical hit (Burn: +37). Hvy. Flail follow-up attack on Y-45 Defender. Critical hit (Burn: +37). Aluminum Leg destroyed. Y-45 Defender destroyed. Acquired 15 matter. Cesium-ion Thruster destroyed. Melee Analysis Suite destroyed. Sealed Heavy Doors opened remotely. Shock Maul destroyed. Map ----- +----------------------------------------------------+ | ???????????#+########!%= # #?????? | | ????????????????????# !! # #?????? | | ????????????????????# """"" # #?????? | | ????????????????????# "!/ " # #?????? | | ????????????????????# " """ + #?????? | | ????????????????????#!%""""" # #?????? | | ????????????????????# = !!!" # #?????? | | ????????????????????# """"" # #?????? | | ????????????????????# # #?????? | | ????????????????????########## #?????? | | ?????????????????????????????# #?????? | | ?????????????????????????????# #?????? | | ?????????????????????????????# #?????? | | ?????????????????????????????# #?????? | | ?????????????????????????????# #?????? | | ???????????????????????###+#?# #?????? | | ???????????????????????? ?# #?????? | | ???????????????????????? ?# #?????? | | ???????????????????????? ?# #?????? | | ???????????????????????? ?# #?????? | | ????????????????????????# #?# #?????? | | ????????????????????????# #?# #?????? | | ???????????????####?????# #?# #?????? | | ???????????###### ####### #?# #?????? | | ???????????#!!!! ##"T"# #?# #?????? | | ???????????# Y[@ g/ #?# #####+# | | ???????????# !! g# #?# | | ???????????######### ** ### | | ??????????????????#T * | | ??????????????"##### | | ??????????????" ^ % | | ??????????????" % ### | | ??????????????"#T##+################/#?? | | ???????????????#???????????????????????? | | ???????????????????????????????????????? | | ???????????????????????????????????????? | | ???????????????????????????????????????? | | ???????????????????????????????????????? | | ???????????????????????????????????????? | | ???????????????????????????????????????? | | ???????????????????????????????????????? | | | | | | | | | | | | | | | | | | | +----------------------------------------------------+ Best States ------------- Heat Dissipation 45 Energy Generation 14 Energy Capacity 265 Matter Stores 300 Matter Capacity 300 Sight Range 16 Terrain Scan Density 110 Resistance: KI 20 Resistance: TH 20 Resistance: EX 20 Resistance: EM 20 Resistance: I 20 Resistance: S 20 Resistance: P 20 Evasion (%) 55 Melee Accuracy 10 Offensive Hacking 10 Item Schematics ----------------- None Robot Schematics ------------------ None Fabricated ------------ Nothing Alien Tech Used ----------------- None Achievements -------------- None Challenges ------------ None Game ------ Seed CouplerVariableClaw Manual? 0 Play Time 00:17:11 Cumulative 35.3 hours Start 2024.04.14 @ 15:38:27 End 2024.04.14 @ 15:53:54 Sessions 1 Manual Loads 0 Difficulty Adventurer Special Mode None Game No. 49 Rogue 0 Adventurer 49 Explorer 0 Win Type - Total 2 Types 2/0/0/0/0/0/0/0/0 Lore% 24 Gallery% 45 Achievement% 37 Wizard Run 0 Options --------- Layout 1 ASCII 0 Keyboard 0 Movement Mouse Keybinds 0 Fullscreen 1 Font 24/Smallcaps Map View 50x35 Zoom Use 0% Tactical HUD 0 Map Filters NONE Filters NONE Steam 1 RUN: 2c46324e-0918-4287-8761-4a242eea8672